bitfinex-derivatives/quotes_ETHF0:USTF0_20210405
["timestamp","ask_amount","ask_price","bid_price","bid_amount"]
[1617637072954,3.7779991,2116.2,2116.1,5.75]
[1617637073154,3.19321577,2116.2,2115.4,5.69]
[1617637073555,3.19321577,2116.2,2116.1,5.7]
[1617637073857,3.19321577,2116.2,2115.4,5.69]
[1617637074155,3.19321577,2116.2,2116.1,5.83]
[1617637074556,3.19321577,2116.2,2115.4,5.89]
[1617637074758,2.90695,2115.5,2115.3,2.90695]
[1617637075057,2.9625158,2115.5,2115.4,5.92]
[1617637075658,2.4461158,2115.5,2115.4,5.92]
[1617637076058,1.9787158,2115.5,2115.4,5.92]
[1617637078264,1.92315,2115.5,2115.4,5.92]
[1617637080068,1.97868286,2115.5,2115.4,5.92]
[1617637081567,0.05553286,2115.5,2115.4,5.92]
[1617637083271,3.286e-05,2115.5,2115.4,5.92]
[1617637087176,2.90695,2115.8,2115.4,5.92]
[1617637088976,0.66633459,2116.0,2115.6,2.90695]
[1617637089375,0.66633459,2116.0,2115.7,5.85]
[1617637090978,2.90695,2115.8,2115.7,5.85]
[1617637091880,0.66633459,2116.0,2115.7,5.85]
[1617637092985,0.66633459,2116.0,2115.9,2.90695]
[1617637093386,0.66633459,2116.0,2115.9,8.74695]
[1617637094890,3.57328459,2116.0,2115.9,8.74695]
[1617637095091,3.57328459,2116.0,2115.9,5.84]
[1617637095491,3.57328459,2116.0,2115.2,5.88]
[1617637095492,4.16227673,2116.0,2115.2,5.88]
[1617637095692,7.00907673,2116.0,2115.2,5.88]
[1617637095893,7.00907673,2116.0,2115.9,5.86]
[1617637096093,6.34274214,2116.0,2115.2,5.89]
[1617637096492,6.34274214,2116.0,2115.9,5.74]
[1617637096493,5.75375,2116.0,2115.9,5.74]
[1617637096692,5.75375,2116.0,2115.1,60.6201]
[1617637096892,2.8468,2116.0,2115.4,2.90695]
[1617637097292,2.8468,2116.0,2115.5,5.89]
[1617637097494,0.66658925,2115.6,2115.5,5.89]
[1617637098895,3.57353925,2115.6,2115.5,5.89]
[1617637099095,2.90695,2115.6,2115.5,5.89]
[1617637099498,4.16313982,2115.6,2115.3,0.9529]
[1617637099694,4.16313982,2115.6,2115.4,5.77]
[1617637099895,4.16313982,2115.6,2115.5,5.9]
[1617637100095,4.16313982,2115.6,2114.8,3.03]
[1617637100296,3.49718481,2115.6,2114.8,3.03]
[1617637100495,3.49718481,2115.6,2115.5,5.95]
[1617637100695,2.90695,2115.6,2115.2,0.9384]
[1617637100895,2.90695,2115.3,2114.8,5.69]
[1617637101097,2.90695,2115.3,2114.7,5.77]
[1617637101296,2.90695,2115.3,2114.6,3.85475]
[1617637101497,2.90695,2115.3,2114.9,5.62]
[1617637101695,2.90695,2115.3,2114.7,5.78]
[1617637101897,2.90695,2115.3,2114.6,3.85475]
[1617637102096,2.90695,2115.3,2115.0,5.9]
[1617637102300,2.90695,2115.3,2114.7,5.89]
[1617637102498,2.90695,2115.3,2114.9,57.5747]
[1617637102699,2.90695,2115.3,2115.1,5.78]
[1617637102899,2.90695,2115.3,2115.0,8.75695]
[1617637103300,2.90695,2115.3,2115.2,5.8]
[1617637103500,2.90695,2115.3,2115.1,5.89]
[1617637103900,2.90695,2115.3,2115.2,5.73]
[1617637104101,2.90695,2115.3,2115.0,2.90695]
[1617637104305,2.90695,2115.3,2115.1,5.73]
[1617637104706,2.90695,2115.3,2115.1,6.6767]
[1617637106412,2.90695,2115.3,2115.1,5.73]
[1617637108713,2.90695,2115.3,2115.1,6.6876]
[1617637108918,2.90695,2115.3,2115.1,5.73]
[1617637109917,2.90695,2115.3,2115.1,6.688]
[1617637110517,2.90695,2115.3,2115.1,5.73]
[1617637110718,0.66738867,2115.2,2115.1,5.73]
[1617637111119,3.5738827,2115.3,2115.1,5.73]
[1617637111520,2.90695,2115.3,2115.1,6.6665]
[1617637111719,3.57390622,2115.3,2115.1,6.6665]
[1617637112520,2.90695,2115.3,2115.1,6.6665]
[1617637112719,2.90695,2115.3,2115.1,5.73]
[1617637112919,3.57390012,2115.3,2115.1,5.73]
[1617637113820,3.57390012,2115.3,2115.1,6.6856]
[1617637114023,0.66695012,2115.3,2115.1,6.6856]
[1617637114622,0.6669443,2115.4,2115.1,6.6856]
[1617637114920,1.11157383,2115.8,2115.3,2.90695]
[1617637115322,0.88926238,2115.6,2115.4,5.91]
[1617637115721,0.88925826,2115.5,2115.4,5.91]
[1617637116123,0.88924556,2115.6,2115.4,5.91]
[1617637117023,2.90695,2115.5,2115.4,5.91]
[1617637117522,3.50443229,2115.5,2115.4,5.91]
[1617637118324,4.39370451,2115.5,2115.4,5.91]
[1617637118724,4.39370451,2115.5,2115.4,6.8481]
[1617637118924,4.39370451,2115.5,2115.4,5.91]
[1617637119526,4.39370451,2115.5,2115.0,5.92]
[1617637119927,4.39370451,2115.5,2115.4,5.83]
[1617637120126,4.39370451,2115.5,2114.9,57.5747]
[1617637120127,3.79622222,2115.5,2115.0,5.73]
[1617637120428,3.79622222,2115.5,2115.4,5.94]
[1617637120829,3.79622222,2115.5,2115.0,5.81]
[1617637121031,2.90695,2115.1,2115.0,5.81]
[1617637121229,2.90695,2115.1,2114.9,57.5747]
[1617637121431,2.90695,2115.1,2115.0,5.79]
[1617637123432,2.90695,2115.1,2114.9,5.79]
[1617637123633,5.41315,2115.1,2114.9,5.79]
[1617637123832,5.41315,2115.1,2115.0,5.73]
[1617637124032,5.41315,2115.1,2114.7,5.83]
[1617637124235,5.41315,2115.1,2114.6,0.9478]
[1617637124436,5.41315,2115.1,2115.0,5.82]
[1617637124636,74.5896,2115.0,2114.7,5.93]
[1617637124835,74.5896,2115.0,2114.4,5.69]
[1617637125035,74.5896,2115.0,2114.5,2.90695]
[1617637125237,2.60425037,2114.9,2114.8,5.85]
[1617637125436,2.60425037,2114.9,2114.6,5.21]
[1617637125853,2.60425037,2114.9,2114.8,5.72]
[1617637126048,2.60425037,2114.9,2112.6,0.9491]
[1617637126049,2.60425037,2114.9,2114.7,5.88]
[1617637126246,62.5185,2114.8,2114.7,5.88]
[1617637126442,62.5185,2114.8,2114.2,0.9392]
[1617637126638,62.5185,2114.8,2114.7,5.91]
[1617637127038,65.42545,2114.8,2114.2,2.90695]
[1617637127241,2.90695,2114.8,2114.4,5.69]
[1617637127440,3.79645824,2114.8,2114.7,5.95]
[1617637127643,3.79645824,2114.8,2114.3,3.66]
[1617637127847,2.90695,2114.8,2114.5,5.79]
[1617637128039,2.90695,2114.8,2114.7,5.71]
[1617637128244,2.90695,2114.8,2114.3,5.92]
[1617637128442,2.90695,2114.8,2114.6,5.67]
[1617637128643,2.90695,2114.8,2114.7,5.89]
[1617637128842,2.90695,2114.8,2114.2,2.90695]
[1617637128843,3.79648886,2114.8,2114.3,5.93]
[1617637129042,2.90695,2114.4,2114.3,5.93]
[1617637129241,2.90695,2114.4,2114.2,2.90695]
[1617637129442,2.90695,2114.4,2114.3,5.9]
[1617637130044,3.51266097,2114.4,2114.3,5.9]
[1617637130447,4.17981737,2114.4,2114.3,5.9]
[1617637131046,3.51266097,2114.4,2114.3,5.9]
[1617637132050,3.51266097,2114.4,2113.4,5.84]
[1617637132246,54.87,2113.8,2113.4,5.84]
[1617637132447,57.1914,2113.8,2113.1,2.0]
[1617637132647,57.1914,2113.8,2113.5,5.02]
[1617637132847,57.1914,2113.8,2113.5,5.9652]
[1617637133046,2.3214,2113.8,2113.6,2.90695]
[1617637133247,2.3214,2113.8,2113.6,8.61695]
[1617637133748,62.5371,2113.8,2113.6,8.61695]
[1617637135148,2.90695,2113.7,2113.6,8.61695]
[1617637141859,2.90695,2113.7,2113.6,5.71]
[1617637142261,2.90695,2113.7,2113.3,5.81]
[1617637142660,2.90695,2113.7,2113.6,5.77]
[1617637142863,2.90695,2113.7,2113.4,5.82]
[1617637143262,2.90695,2113.7,2113.6,5.76]
[1617637143462,2.90695,2113.7,2113.5,5.74]
[1617637143861,2.90695,2113.7,2113.6,5.73]
[1617637144060,2.90695,2113.7,2113.5,5.69]
[1617637144461,2.90695,2113.7,2113.6,5.69]
[1617637144661,2.90695,2113.7,2113.3,63.1114]
[1617637144863,2.90695,2113.7,2113.4,5.72]
[1617637145061,2.90695,2113.7,2113.6,5.84]
[1617637145463,2.90695,2113.7,2113.5,5.76]
[1617637145863,2.90695,2113.7,2113.6,5.8]
[1617637146065,2.90695,2113.7,2113.2,3.86225]
[1617637146265,2.90695,2113.7,2113.4,5.71]
[1617637146464,2.90695,2113.7,2113.6,5.67]
[1617637146664,2.90695,2113.7,2113.2,2.90695]
[1617637146865,2.90695,2113.7,2113.5,5.96]
[1617637147065,2.90695,2113.7,2113.4,5.93]
[1617637147265,2.90695,2113.7,2113.6,2.90695]
[1617637147468,2.90695,2113.7,2113.6,8.84695]
[1617637147866,2.90695,2113.7,2113.6,2.90695]
[1617637148065,2.90695,2113.7,2113.6,8.72695]
[1617637148265,0.66482438,2114.9,2113.7,55.9135]
[1617637148669,70.63753251,2115.1,2113.8,5.88]
[1617637148670,70.41583183,2115.1,2113.8,5.88]
[1617637148867,70.41583183,2115.1,2113.8,8.0311]
[1617637149066,70.41583183,2115.1,2113.9,2.0]
[1617637149067,2.3679512,2114.9,2113.9,2.0]
[1617637149265,2.90695,2114.6,2114.5,2.90695]
[1617637149466,2.90695,2114.6,2114.5,5.05545]
[1617637149666,2.90695,2114.6,2114.5,8.42545]
[1617637151267,1.24245,2114.6,2114.5,9.38215]
[1617637151568,0.53135,2114.6,2114.5,9.38215]
[1617637151768,0.53135,2114.6,2114.5,8.42545]
[1617637153169,0.53135,2114.6,2114.5,77.07705]
[1617637153369,0.53135,2114.6,2114.5,76.12985]
[1617637154572,0.53135,2114.6,2114.5,77.08695]
[1617637154772,0.66462399,2115.3,2114.5,77.08695]
[1617637154974,0.66461774,2115.4,2114.5,77.08695]
[1617637155173,0.66461774,2115.4,2115.3,2.90695]
[1617637155376,0.66458052,2115.5,2115.3,5.36505]
[1617637155574,0.66458052,2115.5,2115.3,11.21505]
[1617637155774,0.66455804,2115.7,2115.3,11.21505]
[1617637156374,0.66452643,2115.8,2115.3,11.21505]
[1617637157173,2.90695,2115.4,2115.3,11.21505]
[1617637157977,4.17359254,2115.4,2115.3,11.21505]
[1617637158375,2.90695,2115.4,2115.3,11.21505]
[1617637159776,2.90695,2115.4,2115.3,8.3081]
[1617637161299,2.90695,2115.4,2115.3,11.21505]
[1617637161978,0.66488475,2115.9,2115.3,13.21505]
[1617637162181,0.66487159,2116.0,2115.3,13.21505]
[1617637162679,0.66486173,2116.1,2115.3,13.21505]
[1617637163380,0.66486173,2116.1,2116.0,2.90695]
[1617637163579,0.66486173,2116.1,2116.0,5.35435]
[1617637163778,0.66481688,2116.2,2116.0,86.05335]
[1617637164188,0.66482506,2116.3,2116.0,86.05335]
[1617637164783,0.66482506,2116.3,2116.1,2.0]
[1617637164985,0.66478974,2116.4,2116.1,2.0]
[1617637165184,0.66478974,2116.4,2116.2,5.78]
[1617637165384,0.66478974,2116.4,2116.3,2.90695]
[1617637165785,0.66478974,2116.4,2116.3,8.60695]
[1617637165786,0.21478974,2116.4,2116.3,8.60695]
[1617637167785,0.21478974,2116.4,2116.3,5.7]
[1617637168184,0.21478974,2116.4,2115.2,5.77]
[1617637168386,58.6122,2116.3,2115.5,5.93]
[1617637168784,0.59675598,2116.2,2115.3,5.88]
[1617637168984,0.59675598,2116.2,2115.6,5.75]
[1617637169384,0.59675598,2116.2,2115.9,2.90695]
[1617637169784,0.59675598,2116.2,2116.0,5.75]
[1617637170585,0.59675598,2116.2,2116.0,6.7016]
[1617637170785,0.59675598,2116.2,2116.0,5.75]
[1617637171285,2.90695,2116.1,2116.0,5.75]
[1617637171485,2.90695,2116.1,2115.8,2.90695]
[1617637171686,2.90695,2116.1,2115.9,5.88]
[1617637173188,2.90695,2116.1,2115.9,7.8736]
[1617637173992,0.88644589,2116.8,2116.0,2.0]
[1617637174190,0.88644589,2116.8,2116.2,77.7013]
[1617637174391,0.88641617,2116.9,2116.2,77.7013]
[1617637174589,0.88641617,2116.9,2116.3,5.72]
[1617637174790,5.90225829,2117.2,2116.3,5.72]
[1617637174791,0.88638382,2117.0,2116.3,5.72]
[1617637175290,0.88638382,2117.0,2116.6,2.90695]
[1617637175490,0.88638382,2117.0,2116.6,4.78615]
[1617637175689,0.88638382,2117.0,2116.7,5.68]
[1617637176094,3.49096869,2117.2,2116.7,5.68]
[1617637176491,0.88669556,2117.0,2116.7,5.68]
[1617637176891,0.88670921,2117.1,2116.7,5.68]
[1617637177290,2.90695,2116.8,2116.7,5.68]
[1617637178396,3.50733191,2116.8,2116.7,5.68]
[1617637179496,2.90695,2116.8,2116.7,5.68]
[1617637183000,2.90695,2116.8,2115.5,5.91]
[1617637183200,75.8397,2116.7,2115.5,7.91]
[1617637183402,75.8397,2116.7,2115.9,2.90695]
[1617637183802,75.8397,2116.7,2116.0,5.67]
[1617637185401,2.90695,2116.1,2116.0,5.67]
[1617637186603,2.90695,2116.1,2116.0,6.6115]
[1617637186803,2.90695,2116.1,2116.0,5.67]
[1617637194013,2.67165,2116.1,2116.0,5.67]
[1617637196813,2.67165,2116.1,2115.8,0.9481]
[1617637197012,2.67165,2116.1,2115.5,5.79]
[1617637197213,2.67165,2116.1,2116.0,5.91]
[1617637197413,2.67165,2116.1,2115.9,5.87]
[1617637197614,2.67165,2116.1,2116.0,64.9921]
[1617637197814,63.61183531,2117.1,2116.0,70.7421]
[1617637198214,63.61183531,2117.1,2116.0,64.9921]
[1617637198416,62.7266,2117.1,2116.1,5.92]
[1617637198615,2.3723203,2117.2,2116.1,5.92]
[1617637198815,2.3723203,2117.2,2116.6,55.9922]
[1617637199215,0.58963821,2117.1,2116.7,5.94]
[1617637199416,0.58963821,2117.1,2117.0,2.90695]
[1617637199615,1.4871,2117.2,2117.0,2.90695]
[1617637199816,1.4871,2117.2,2117.0,8.57695]
[1617637201416,2.90695,2117.1,2117.0,8.57695]
[1617637205321,76.65545,2117.1,2117.0,8.57695]
[1617637207125,76.65545,2117.1,2117.0,5.67]
[1617637207523,76.65545,2117.1,2116.3,2.90695]
[1617637207722,76.65545,2117.1,2116.2,5.7]
[1617637207922,76.65545,2117.1,2117.0,5.93]
[1617637208121,76.65545,2117.1,2116.4,5.89]
[1617637208322,76.65545,2117.1,2116.2,5.89]
[1617637208524,76.65545,2117.1,2117.0,5.89]
[1617637208724,0.58903022,2117.0,2116.5,5.8]
[1617637208925,0.58903022,2117.0,2116.2,5.82]
[1617637209125,78.12863166,2117.1,2116.6,5.72]
[1617637209528,2.90695,2116.7,2116.2,8.63695]
[1617637209728,2.90695,2116.7,2116.2,2.90695]
[1617637210127,2.90695,2116.7,2116.3,5.7]
[1617637211426,2.90695,2116.7,2116.6,2.90695]
[1617637211827,2.90695,2116.7,2116.6,8.74695]
[1617637212430,2.90695,2116.7,2116.6,5.84]
[1617637212830,2.90695,2116.7,2116.2,5.79]
[1617637213030,5.14045,2116.7,2116.2,5.79]
[1617637213230,5.14045,2116.7,2116.6,5.93]
[1617637213432,1.94315,2116.7,2116.2,5.89]
[1617637213631,4.8501,2116.7,2116.3,2.90695]
[1617637214032,4.8501,2116.7,2116.4,5.93]
[1617637219539,4.8501,2116.7,2116.6,2.90695]
[1617637219939,4.8501,2116.7,2116.6,8.84695]
[1617637220440,1.94315,2116.7,2116.6,8.84695]
[1617637220639,73.7485,2117.1,2116.6,8.84695]
[1617637221540,2.90695,2116.7,2116.6,8.84695]
[1617637221740,73.7485,2117.1,2116.6,8.84695]
[1617637223541,73.7485,2117.1,2116.9,2.90695]
[1617637223942,73.7485,2117.1,2117.0,5.16609591]
[1617637224442,74.63367126,2117.1,2117.0,5.16609591]
[1617637224844,73.7485,2117.1,2117.0,5.16609591]
[1617637225042,2.37224974,2117.2,2117.0,5.16609591]
[1617637225243,2.37224974,2117.2,2117.0,83.20839591]
[1617637225642,2.90695,2117.1,2117.0,83.20839591]
[1617637226043,2.90695,2117.1,2117.0,5.16609591]
[1617637226242,3.57080459,2117.1,2117.0,5.16609591]
[1617637226643,2.90695,2117.1,2117.0,5.16609591]
[1617637227043,3.79214951,2117.1,2117.0,5.16609591]
[1617637227443,2.90695,2117.1,2117.0,5.16609591]
[1617637227642,64.09375,2117.1,2117.0,5.16609591]
[1617637228246,65.21121766,2117.1,2117.0,5.16609591]
[1617637229044,66.31837501,2117.1,2117.0,5.16609591]
[1617637229444,65.21121766,2117.1,2117.0,5.16609591]
[1617637230046,6.02441766,2117.1,2116.0,2.90695]
[1617637230245,53.6776,2116.4,2114.9,2.0]
[1617637230445,57.604,2116.4,2116.1,5.9]
[1617637230645,0.66444044,2116.2,2115.0,5.79]
[1617637231045,2.00368658,2116.3,2115.0,5.79]
[1617637231344,0.88595658,2116.2,2115.0,5.79]
[1617637231546,0.66446744,2116.0,2115.5,2.90695]
[1617637231944,0.66446744,2116.0,2115.6,5.89]
[1617637233546,2.90695,2115.7,2115.6,5.89]
[1617637233747,4.70285,2115.7,2115.6,5.89]
[1617637234549,5.81474719,2115.7,2115.6,5.89]
[1617637235349,4.70285,2115.7,2114.6,5.94]
[1617637235549,1.7959,2115.7,2115.4,2.90695]
[1617637235749,1.94859982,2115.9,2115.6,5.85]
[1617637235949,1.11193801,2115.7,2115.5,5.71]
[1617637236359,1.11193801,2115.7,2115.4,2.90695]
[1617637236550,1.11193801,2115.7,2115.5,5.88]
[1617637237555,2.90695,2115.6,2115.5,5.88]
[1617637237752,5.45465,2115.6,2115.2,2.90695]
[1617637237953,6.56662369,2115.6,2115.3,5.89]
[1617637238151,6.56662369,2115.6,2115.5,5.72]
[1617637238351,6.56662369,2115.6,2114.5,2.0]
[1617637238553,6.56662369,2115.6,2115.4,5.95]
[1617637238751,6.56662369,2115.6,2115.5,5.74]
[1617637238950,6.56662369,2115.6,2114.6,2.94]
[1617637239150,6.56662369,2115.6,2115.4,5.89]
[1617637239350,6.56662369,2115.6,2115.5,5.72]
[1617637239551,5.45465,2115.6,2114.6,5.79]
[1617637239750,5.45465,2115.6,2115.0,2.90695]
[1617637239951,5.45465,2115.6,2115.5,5.67]
[1617637240150,5.45465,2115.6,2115.1,0.45]
[1617637240552,5.45465,2115.6,2115.0,2.90695]
[1617637240553,9.86331694,2115.6,2115.5,5.95]
[1617637240750,9.86331694,2115.6,2115.0,2.90695]
[1617637240951,6.57259511,2115.6,2115.1,5.71]
[1617637241353,0.66676056,2115.2,2115.1,5.71]
[1617637241752,3.57371056,2115.2,2115.1,5.71]
[1617637241953,2.90695,2115.2,2115.1,5.71]
[1617637242754,3.57372597,2115.2,2115.1,5.71]
[1617637244357,3.57372597,2115.2,2114.6,5.85]
[1617637244557,2.90695,2115.2,2115.1,5.81]
[1617637244957,2.90695,2115.2,2114.6,5.68]
[1617637245157,2.90695,2115.2,2115.1,5.86]
[1617637245559,2.90695,2115.2,2114.6,5.95]
[1617637245757,2.90695,2115.2,2115.0,2.90695]
[1617637245957,2.90695,2115.2,2115.1,5.81]
[1617637246157,2.90695,2115.2,2115.0,2.90695]
[1617637246158,3.79602644,2115.2,2115.0,2.90695]
[1617637246366,3.79602644,2115.2,2115.1,5.73]
[1617637246568,2.90695,2115.2,2115.1,5.73]
[1617637247269,3.57373522,2115.2,2115.1,5.73]
[1617637247667,2.90695,2115.2,2115.1,5.73]
[1617637248867,2.90695,2115.2,2114.7,5.72]
[1617637249268,2.90695,2115.2,2115.1,5.87]
[1617637249467,2.90695,2115.2,2114.8,5.92]
[1617637249672,2.90695,2114.9,2114.8,5.92]
[1617637249871,2.90695,2114.9,2114.6,2.90695]
[1617637250072,2.90695,2114.9,2114.8,5.8]
[1617637250473,2.90695,2114.9,2114.6,2.90695]
[1617637250675,2.90695,2114.9,2114.7,5.86]
[1617637250874,2.90695,2114.9,2114.8,5.92]
[1617637251075,2.90695,2114.9,2114.6,2.90695]
[1617637251474,2.90695,2114.9,2114.8,5.79]
[1617637251675,2.90695,2114.9,2114.7,6.8719]
[1617637251875,2.90695,2114.9,2114.6,2.90695]
[1617637252076,4.02506826,2114.9,2114.8,5.77]
[1617637252476,2.90695,2114.9,2114.7,5.91]
[1617637252674,2.90695,2114.9,2114.8,5.75]
[1617637253075,2.90695,2114.9,2114.7,5.81]
[1617637253278,2.90695,2114.9,2114.8,5.86]
[1617637253677,2.90695,2114.9,2114.7,5.79]
[1617637253878,2.90695,2114.9,2114.8,5.9]
[1617637254079,3.57372429,2114.9,2114.8,5.9]
[1617637254277,3.57372429,2114.9,2114.6,2.90695]
[1617637254278,3.57372429,2114.9,2114.7,5.83]
[1617637254476,3.57372429,2114.9,2114.6,2.90695]
[1617637254477,2.90695,2114.9,2114.8,5.72]
[1617637254776,2.90695,2114.9,2114.7,5.8]
[1617637255782,3.5737345,2114.9,2114.7,5.8]
[1617637257181,2.90695,2114.9,2114.7,5.8]
[1617637257481,3.57371801,2114.9,2114.7,5.8]
[1617637257883,2.90695,2114.9,2114.7,5.8]
[1617637258082,2.90695,2114.9,2114.7,6.7459]
[1617637258481,2.90695,2114.9,2114.7,5.8]
[1617637259286,3.57346412,2114.9,2114.7,5.8]
[1617637259685,3.57346444,2114.9,2114.7,5.8]
[1617637260489,0.66653009,2114.8,2114.7,5.8]
[1617637261187,2.90695,2114.9,2114.7,5.8]
[1617637261586,0.66654355,2114.8,2114.7,5.8]
[1617637262290,3.79571422,2114.9,2114.7,5.8]
[1617637263590,0.66655535,2114.8,2114.7,5.8]
[1617637263887,2.90695,2114.9,2114.7,5.8]
[1617637264488,2.90695,2114.9,2114.8,64.54380421]
[1617637264888,2.90695,2114.9,2114.8,70.38380421]
[1617637265489,3.57348433,2114.9,2114.8,70.38380421]
[1617637266290,2.90695,2114.9,2114.8,70.38380421]
[1617637266491,3.57344702,2114.9,2114.8,70.38380421]
[1617637267091,3.57344702,2114.9,2114.8,5.84]
[1617637267490,3.57344702,2114.9,2114.7,5.83]
[1617637267690,3.57344702,2114.9,2114.8,5.8]
[1617637268091,3.57344702,2114.9,2114.7,5.73]
[1617637268492,2.90695,2114.9,2114.7,5.73]
[1617637270399,0.66566427,2115.2,2114.7,5.73]
[1617637270600,0.66566427,2115.2,2114.8,68.3736]
[1617637271000,0.66566427,2115.2,2114.9,5.91]
[1617637271204,0.66559343,2115.5,2114.9,5.91]
[1617637271398,0.88745791,2115.7,2114.9,5.91]
[1617637271399,0.66559523,2115.4,2114.9,5.91]
[1617637271800,0.66559523,2115.4,2115.3,2.90695]
[1617637272099,0.66559523,2115.4,2115.3,8.76695]
[1617637274205,3.79448254,2115.5,2115.3,8.76695]
[1617637274808,3.79448254,2115.5,2115.3,5.86]
[1617637275204,3.79448254,2115.5,2114.9,5.95]
[1617637275606,2.90695,2115.5,2115.4,5.71]
[1617637275806,2.90695,2115.5,2115.4,0.9428]
[1617637276006,4.0164816,2115.5,2114.9,5.75]
[1617637276208,4.0164816,2115.5,2115.4,5.76]
[1617637276607,62.5241,2115.4,2114.9,5.74]
[1617637276808,4.0164816,2115.5,2115.4,5.89]
[1617637277208,4.85159804,2115.5,2115.0,5.06]
[1617637277406,58.1206,2115.0,2114.7,5.78]
[1617637277607,60.9439,2115.0,2114.7,5.78]
[1617637277807,2.90695,2114.8,2114.5,2.90695]
[1617637278008,3.57274746,2114.8,2114.5,2.90695]
[1617637278209,3.57274746,2114.8,2114.6,4.69]
[1617637279511,0.66581861,2114.7,2114.6,4.69]
[1617637279911,2.90695,2114.8,2114.6,4.69]
[1617637281313,2.90695,2114.8,2113.3,5.8]
[1617637281514,2.0,2114.7,2113.3,5.8]
[1617637281712,2.0,2114.7,2113.0,2.0]
[1617637281713,74.878,2113.9,2113.0,2.0]
[1617637281912,80.13315,2113.9,2113.8,2.90695]
[1617637282313,80.13315,2113.9,2113.8,5.91]
[1617637282714,80.13315,2113.9,2113.4,5.91]
[1617637283116,80.13315,2113.9,2113.8,5.86]
[1617637283316,80.18855237,2113.9,2113.5,5.67]
[1617637283514,5.31055237,2113.9,2113.5,5.67]
[1617637283715,5.25515,2113.9,2113.8,5.94]
[1617637283916,5.25515,2113.9,2113.6,5.61]
[1617637284115,0.05540792,2113.7,2113.6,5.61]
[1617637284314,0.05540792,2113.7,2113.5,5.83]
[1617637284515,74.4136,2113.8,2113.6,5.83]
[1617637284917,74.4136,2113.8,2113.2,2.90695]
[1617637284918,74.4136,2113.8,2113.4,5.7]
[1617637285114,74.4136,2113.8,2113.7,5.68]
[1617637285314,75.07859622,2113.8,2112.4,0.936]
[1617637285514,0.66499622,2113.8,2113.5,5.95]
[1617637285716,7.25515,2113.9,2113.5,5.95]
[1617637285717,8.14185051,2113.9,2113.7,3.79]
[1617637285918,8.14185051,2113.9,2112.8,0.9453]
[1617637286113,8.14185051,2113.9,2112.2,2.90695]
[1617637286114,0.88673289,2113.8,2113.6,5.87]
[1617637286517,67.3065,2113.6,2113.5,4.81]
[1617637286716,67.3065,2113.6,2113.0,5.87]
[1617637286917,67.3065,2113.6,2113.5,5.72]
[1617637287318,67.3065,2113.6,2112.9,5.74]
[1617637287518,67.3065,2113.6,2113.5,5.76]
[1617637287921,71.10031309,2113.6,2113.0,5.75]
[1617637288118,71.10031309,2113.6,2112.7,4.03]
[1617637288119,71.10031309,2113.6,2113.2,4.34]
[1617637288320,70.21345,2113.6,2113.5,0.45]
[1617637288521,70.21345,2113.6,2113.1,5.55]
[1617637288720,70.21345,2113.6,2113.3,3.68]
[1617637288921,70.21345,2113.6,2113.5,0.73]
[1617637289122,71.32206909,2113.6,2113.2,5.38]
[1617637289320,71.32206909,2113.6,2112.9,4.2]
[1617637289520,70.21345,2113.6,2113.5,4.78]
[1617637289719,70.21345,2113.6,2113.3,4.96]
[1617637289920,71.32206065,2113.6,2113.0,4.4]
[1617637290120,71.32206065,2113.6,2112.6,4.86]
[1617637290320,2.00612145,2113.5,2112.5,5.88]
[1617637290520,2.00612145,2113.5,2113.1,4.76]
[1617637290722,0.66516195,2113.3,2112.7,4.82]
[1617637290921,0.66516195,2113.3,2112.6,6.2776]
[1617637291121,1.9299,2113.4,2112.4,5.54]
[1617637291321,1.9299,2113.4,2112.3,5.09]
[1617637291522,1.9299,2113.4,2112.5,5.7]
[1617637291923,1.9299,2113.4,2112.6,2.90695]
[1617637292321,1.9299,2113.4,2112.6,8.61695]
[1617637292521,1.9299,2113.4,2112.6,2.90695]
[1617637292821,1.9299,2113.4,2112.7,5.94]
[1617637293022,67.3065,2113.6,2112.7,5.94]
[1617637293424,67.3065,2113.6,2112.3,5.87]
[1617637293722,67.3065,2113.6,2112.8,5.96]
[1617637293923,2.90695,2112.9,2112.8,5.96]
[1617637294124,2.90695,2112.9,2112.3,5.8]
[1617637294324,2.90695,2112.9,2112.8,5.79]
[1617637294724,2.90695,2112.9,2112.3,5.85]
[1617637295124,2.90695,2112.9,2112.8,5.91]
[1617637295324,2.90695,2112.9,2112.3,5.79]
[1617637295724,2.90695,2112.9,2112.8,5.96]
[1617637295924,2.90695,2112.9,2112.3,5.86]
[1617637296331,2.90695,2112.9,2112.8,5.7]
[1617637296525,2.90695,2112.9,2112.3,5.83]
[1617637296924,2.90695,2112.9,2112.8,5.88]
[1617637297126,2.90695,2112.9,2112.2,3.85355]
[1617637297324,2.90695,2112.9,2112.3,5.91]
[1617637297924,2.90695,2112.4,2112.3,5.91]
[1617637298327,4.91045,2112.4,2112.3,5.91]
[1617637298526,4.91045,2112.4,2112.0,5.68]
[1617637298928,4.91045,2112.4,2112.3,5.91]
[1617637299126,4.91045,2112.4,2112.1,5.82]
[1617637299527,59.3403,2112.1,2111.7,5.87]
[1617637299727,59.3403,2112.1,2110.8,2.0]